Cogmind - Beta 17.1 @@@ ROGUE MODE // 2026.09.16 @ 22:54:23 Player: 7H-NLC Result: Destroyed by Y-45 Defender with Heavy Assault Rifle Performance ------------- Evolutions (2) 1000 Regions Visited (9) 1800 Robots Destroyed (133) 665 Value Destroyed (3875) 3875 Prototype IDs (43) 860 Alien Tech Used (0) 0 Bonus (1474) 1474 TOTAL SCORE: 9674 Bonus ------- High Alert Combat Kills 319 Follower Combat Kills 155 Entered Garrisons 200 Used RIF Installer 500 Aligned with FarCom 300 Cogmind --------- Core Integrity 0/550 Matter 300/300 Energy 100/100 System Corruption 1% Temperature Cool (9) Movement Walking (260) Ox2 Location -8/Materials Parts ------- > --- POWER (1) -------- (None) > --- PROPULSION (4) --- Aluminum Leg Aluminum Leg > --- UTILITY (4) ------ High-capacity Storage Unit Melee Analysis Suite Core Analyzer > --- WEAPON (2) ------- Heavy Mace > --- INVENTORY (20) --- Reinforced Fission Core Wheel Aerolev Unit Combat Antigrav System Experimental Heat Sink Superbattery (1500) Gravity Neutralizer 0b10 Alert Chip Experimental Targeting Computer Experimental Core Analyzer Advanced Weapon Cycler Advanced Transmission Jammer Relay Coupler [NC] (21) Relay Coupler [Grunt] (28) Advanced Component Analysis Suite Advanced Recalibrator AS-neutralizer No. 17b Peak State ------------ > --- POWER ------------ Cold Fusion Reactor > --- PROPULSION ------- Makeshift Leg Makeshift Leg Advanced Myomer Leg Advanced Myomer Leg > --- UTILITY ---------- High-capacity Storage Unit Seismic Detector Improved Targeting Computer Advanced Component Analysis Suite > --- WEAPON ----------- Autogun 8R-AWN's Boregun > --- INVENTORY -------- Reinforced Fission Core Makeshift Leg Makeshift Hover Unit Makeshift Hover Unit Combat Antigrav System Experimental Heat Sink Superbattery Gravity Neutralizer 0b10 Alert Chip Experimental Targeting Computer Experimental Core Analyzer Advanced Weapon Cycler Advanced Transmission Jammer Advanced Recalibrator AS-neutralizer No. 17b Advanced EMP Blaster Mini Grenade Launcher Deploy-a-Sentry [Rating: 65] Favorites ----------- Power Cooled Ion Engine Engine Cooled Ion Engine Power Core Light Nuclear Core Reactor Cold Fusion Reactor Propulsion Armored Treads Treads Armored Treads Leg Advanced Myomer Leg Wheel Wheel Utility Large Storage Unit Device Seismic Detector Storage Large Storage Unit Processor Improved Targeting Computer Protection Light Armor Plating Weapon Autogun Energy Cannon Advanced Beam Cannon Ballistic Gun Autogun Launcher Mini Grenade Launcher Impact Weapon Heavy Mace Special Melee Weapon Datajack Build | -11 -10 -10 -9 -9 -9 -8 -8 -8 -8 ------- Run | Yrd Mat Min Mat Min Exi Min Mat Gar Mat Slots Evolved 4 | . . . 2 . . . 2 . . Power . | . . . . . . . . . . Propulsion 2 | . . . . . . . 2 . . Utility 2 | . . . 2 . . . . . . Weapon . | . . . . . . . . . . Parts Attached 88 | 8 2 7 15 2 22 . 17 2 13 Power 12 | 2 1 2 3 . 2 . . 1 1 Engine 9 | 2 1 1 3 . 1 . . . 1 Core 2 | . . 1 . . . . . 1 . Reactor 1 | . . . . . 1 . . . . Propulsion 22 | 2 . 2 . . 7 . 5 . 6 Treads 6 | . . 2 . . 3 . . . 1 Leg 14 | . . . . . 4 . 5 . 5 Wheel 2 | 2 . . . . . . . . . Hover . | . . . . . . . . . . Flight . | . . . . . . . . . . Utility 30 | 2 1 2 5 1 8 . 5 1 5 Device 7 | 1 . 1 1 . 4 . . . . Storage 5 | 1 1 . 1 . 2 . . . . Processor 4 | . . . . 1 . . 2 . 1 Hackware . | . . . . . . . . . . Protection 14 | . . 1 3 . 2 . 3 1 4 Artifact . | . . . . . . . . . . Weapon 24 | 2 . 1 7 1 5 . 7 . 1 Energy Gun . | . . . . . . . . . . Energy Cannon 1 | . . . 1 . . . . . . Ballistic Gun 17 | 2 . 1 5 . 4 . 4 . 1 Ballistic Cannon . | . . . . . . . . . . Launcher 3 | . . . . 1 . . 2 . . Special Weapon . | . . . . . . . . . . Impact Weapon 2 | . . . . . 1 . 1 . . Slashing Weapon . | . . . . . . . . . . Piercing Weapon . | . . . . . . . . . . Special Melee Weapon 1 | . . . 1 . . . . . . Unidentified Prototypes 7 | . . . 3 . 4 . . . . Corrupted Parts 1 | . . . . . . . . . 1 System Corruption 1 | . . . . . . . . . 1 Parts Lost 29 | . 1 . . . 8 1 1 . 18 Power 2 | . 1 . . . . . . . 1 Propulsion 11 | . . . . . 3 . . . 8 Utility 10 | . . . . . 4 . 1 . 5 Weapon 6 | . . . . . 1 1 . . 4 Highest Loss Streak 8 | . 1 . . . 8 1 1 . 4 To Critical Strikes 4 | . . . . . 4 . . . . Average Backups 15 | 2 8 12 14 15 12 19 18 19 18 Power 1 | . 1 1 1 2 1 1 1 1 1 Propulsion 2 | 1 2 2 2 3 3 6 2 3 2 Utility 7 | . 4 8 5 4 4 10 11 12 13 Weapon 3 | . 1 1 4 5 3 2 3 2 . Tool/Special . | . . . . . . . . . . Unused Backups 50 | . . 7 6 . 15 . 10 . 12 Power 6 | . . . 2 . 4 . . . . Propulsion 11 | . . . . . 5 . 3 . 3 Utility 26 | . . 7 3 . 5 . 2 . 9 Weapon 6 | . . . 1 . 1 . 4 . . Tool/Special 1 | . . . . . . . 1 . . Average Slot Usage (%) 98 | . 99 100 98 100 98 100 99 100 87 Engine 6 | . 13 6 11 11 9 . . . 2 Core 1 | . . 7 . . . . . . 4 Reactor 2 | . . . . . 1 11 9 8 . Treads 12 | . . 23 21 22 14 . . . 1 Leg 12 | . . . . . 7 22 35 36 30 Device 11 | . 14 7 21 11 13 22 4 . . Storage 11 | . 14 14 11 11 12 11 9 9 9 Processor 8 | . . . . 11 11 11 14 18 11 Protection 8 | . . 6 10 11 6 . 7 9 11 Ballistic Gun 16 | . 28 28 20 20 10 11 14 9 6 Launcher 2 | . . . . 1 6 11 3 2 1 Impact Weapon 1 | . . . . . 3 . . 6 8 Peak Build Rating 65 | 7 8 20 26 22 62 49 65 60 63 Average Rating 33 | 5 7 15 23 21 32 48 56 56 41 On Entrance 29 | . 7 8 20 22 21 49 47 56 60 Avg Prop Armor Cover (%) 9 | . . 15 . . 8 . . . 8 Naked Turns . | . . . . . . . . . . Heaviest Build 82 | 14 29 35 49 38 62 57 68 78 82 Greatest Support 112 | 20 20 42 42 42 72 72 112 96 96 Greatest Overweight (x) 14 | . 1 2 14 . 1 . . . 4 Average Overweight (x) . | . . . . . . . . . . Largest Inventory Capacity 20 | 8 15 15 15 15 20 20 20 20 20 Average Capacity 16 | 7 12 15 15 15 16 20 20 20 20 Most Carried 20 | 5 12 15 15 15 20 20 20 20 20 Average Carried 15 | 2 9 14 14 15 13 20 19 19 18 Final Capacity 20 | 8 15 15 15 15 20 20 20 20 20 Final Carried 20 | 5 12 14 15 15 20 20 20 20 17 Class Distribution -------------------- 60% | Mutant 39% | Scavenger-Mutant Dominant Class ---------------- Mutant | -10/Materials Mutant | -10/Mines Mutant | -9/Materials Mutant | -9/Mines Mutant | -9/Exiles Scavenger-Mutant | -8/Mines Scavenger-Mutant | -8/Materials Scavenger-Mutant | -8/Garrison Scavenger-Mutant | -8/Materials Resources | -11 -10 -10 -9 -9 -9 -8 -8 -8 -8 ----------- Run | Yrd Mat Min Mat Min Exi Min Mat Gar Mat Matter Collected 3984 | 312 46 303 620 50 758 183 963 234 515 Remotely . | . . . . . . . . . . Salvage Created 4275 | 125 82 183 617 5 566 68 1199 321 1109 Parts 302 | 8 6 19 42 1 81 8 85 17 35 Haulers Intercepted 7 | . . . 2 . . . 5 . . Recyclers Shooed 7 | 1 . . 2 . . . 3 . 1 Parts Field Recycled . | . . . . . . . . . . Retrieved Matter . | . . . . . . . . . . Parts Self-Destructed . | . . . . . . . . . . Prevented . | . . . . . . . . . . Parts Restored . | . . . . . . . . . . Kills | -11 -10 -10 -9 -9 -9 -8 -8 -8 -8 ------- Run | Yrd Mat Min Mat Min Exi Min Mat Gar Mat Combat Hostiles Destroyed 101 | . 2 8 12 . 6 7 30 12 24 Melee 4 | . . . . . . . . . 4 Guns 54 | . 2 8 12 . 1 . 16 6 9 AOE 35 | . . . . . 5 7 14 6 3 Classes Destroyed 17 | 2 1 1 6 . 3 1 2 1 . Worker 8 | . . . 1 . . . 3 . 4 Builder 3 | . . . . . . 1 2 . . Tunneler 3 | 2 . . . 1 . . . . . Hauler 7 | . . . 2 . . . 5 . . Recycler 2 | 1 . . . . . . 1 . . Operator 1 | . . . 1 . . . . . . Turret 1 | . . . . . 1 . . . . Watcher 2 | . . . 1 . . . 1 . . Swarmer 33 | . . 6 3 . . 4 12 7 1 Cutter 2 | . . . . . . . . 2 . Grunt 37 | . 2 2 6 . . 3 5 3 16 Brawler 3 | . . . 1 . . . . . 2 Sentry 14 | . . . 2 . . . 8 . 4 Specialist 2 | . . . . . . . 2 . . Hunter 4 | . . . . . . . 3 . 1 Zionite 8 | . . . . . 8 . . . . Assembled 5 | . . . . . 5 . . . . Best Kill Streak 11 | 3 2 3 3 1 11 8 7 4 6 Combat Bots Only 7 | . 2 3 3 . 5 7 4 4 6 Max Kills in Single Turn 4 | 1 1 2 1 1 2 2 4 2 3 Gunslinging . | . . . . . . . . . . Exploded 3 | . . . . . 2 2 3 2 2 Melee 1 | . . . . . . . . . 1 Uniques/NPCs Destroyed 4 | . . . . . 4 . . . . 8R-AWN (-9/Exiles) EX-DEC (-9/Exiles) EX-BIN (-9/Exiles) EX-HEX (-9/Exiles) Combat | -11 -10 -10 -9 -9 -9 -8 -8 -8 -8 -------- Run | Yrd Mat Min Mat Min Exi Min Mat Gar Mat Hostile Shots Fired 583 | . 7 51 52 . 101 27 103 37 205 Missed 142 | . 3 11 14 . 22 9 21 12 50 Hits 441 | . 4 40 38 . 79 18 82 25 155 Melee 3 | . . . . . . . . 3 . Projectile 438 | . 4 40 38 . 79 18 82 22 155 AOE 2 | . . . . . . . . 2 . Critical Strikes 42 | . . . . . 30 . 3 2 7 Damage Taken 6489 | . 127 364 367 . 1364 251 1141 432 2443 Core 914 | . 49 86 43 . 150 34 226 27 299 Absorbed by Shields 80 | . . . 80 . . . . . . Ignored by Resistances 65 | . . . . . . . . . 65 Regen/Repaired (Parts) 359 | . . . 225 . . . 134 . . Core Remaining (%) 63 | 100 . 46 . . . 43 . . . Volleys Fired 360 | 8 9 23 46 2 98 11 68 23 72 Largest 2 | 2 2 2 2 1 2 1 2 2 1 Hottest 53 | 40 40 40 46 30 46 30 53 53 30 Shots Fired 534 | 16 18 46 92 2 143 11 102 32 72 Gun 488 | 16 18 46 92 . 136 . 81 27 72 Cannon . | . . . . . . . . . . Launcher 46 | . . . . 2 7 11 21 5 . Special . | . . . . . . . . . . Kinetic 488 | 16 18 46 92 . 136 . 81 27 72 Thermal . | . . . . . . . . . . Explosive 44 | . . . . 2 7 11 19 5 . Electromagnetic 2 | . . . . . . . 2 . . Robot Hit Streak 19 | 5 6 6 13 . 19 2 13 6 10 Robot Miss Streak 6 | 1 3 6 4 . 5 3 2 4 3 Penetration Max 1 | . . . . . . . . . 1 Secondary Targets 7 | . 1 2 3 . . . . 1 . Max Gunslinging Chain 1 | . 1 1 1 . . . . 1 . Shots Hit Robots 382 | 10 10 24 62 . 114 3 61 17 81 Core Hits 219 | 6 4 11 25 . 49 13 65 17 29 Critical Kills 10 | . . . . . 4 . 2 . 4 Critical Parts Destroyed 20 | . . . . . 7 . 3 . 10 Critical Strikes 30 | . . . . . 11 . 5 . 14 Destroy 21 | . . . . . 11 . 5 . 5 Smash 9 | . . . . . . . . . 9 Melee Attacks 100 | . . . 1 . 6 . 1 42 50 Impact 97 | . . . . . 4 . 1 42 50 Slashing . | . . . . . . . . . . Piercing . | . . . . . . . . . . Sneak Attacks 4 | . . . 1 . 2 . . . 1 Combat Hostiles . | . . . . . . . . . . Follow-up Attacks . | . . . . . . . . . . Damage Inflicted 11550 | 114 91 269 928 29 2276 835 3269 1004 2735 Guns 5204 | 114 91 265 919 . 1627 . 1173 250 765 Cannons . | . . . . . . . . . . Explosions 4357 | . . . . . 342 782 2012 652 569 Melee 1726 | . . . . . 252 . . 102 1372 Ramming 263 | . . 4 9 29 55 53 84 . 29 Kinetic 5204 | 114 91 265 919 . 1627 . 1173 250 765 Thermal 569 | . . . . . . . . . 569 Explosive 3670 | . . . . . 342 782 1894 652 . Electromagnetic 118 | . . . . . . . 118 . . Impact 1726 | . . . . . 252 . . 102 1372 Slashing . | . . . . . . . . . . Piercing . | . . . . . . . . . . Highest Corruption 4 | . 4 4 . . . . . . 1 Average Corruption 3 | . 3 4 . . . . . . 1 Corruption Purged . | . . . . . . . . . . Corruption Blocked . | . . . . . . . . . . Effects 40 | . . 38 . . . . . . 2 Message Errors 8 | . . 7 . . . . . . 1 Matter Fused 13 | . . 13 . . . . . . . Heat Flow Errors 6 | . . 5 . . . . . . 1 Energy Discharges 7 | . . 7 . . . . . . . Data Loss (minor) 6 | . . 6 . . . . . . . Overload Shots . | . . . . . . . . . . Overflow Damage 916 | . . . . . 141 24 128 111 512 Projectiles . | . . . . . . . . . . Explosions 272 | . . . . . 18 24 128 34 68 Melee 644 | . . . . . 123 . . 77 444 Knockbacks 5 | . . . . . . . . . 5 Impact 5 | . . . . . . . . . 5 Kinetic . | . . . . . . . . . . Secondary . | . . . . . . . . . . Self-Inflicted Damage 278 | . . . . . . 59 12 32 175 Shots 6 | . . . . . . 2 1 1 2 Rammed 18 | . . 1 4 2 11 . . . . Targets Rammed 40 | . . 1 5 3 12 4 10 . 5 Kicked 19 | . . . . . . 4 10 . 5 Crushed 3 | . . . 1 1 1 . . . . Highest Temperature 263 | . 6 263 20 . 16 . 23 15 153 Average Temperature 31 | . 6 72 4 . 4 . 7 6 33 Received Heat Transfer 1790 | . 24 84 134 . . 54 198 108 1188 Siege Activations . | . . . . . . . . . . Martial Activations . | . . . . . . . . . . Shielding Activations . | . . . . . . . . . . Robots Disrupted . | . . . . . . . . . . Combat Hostiles . | . . . . . . . . . . Robots Corrupted 12 | . . . . . 2 . . . 10 Combat Hostiles 8 | . . . . . . . . . 8 Parts Fried 20 | . . . . . 2 . 1 2 15 Impact Corruptions 22 | . . . . . 2 . . 2 18 Robots Melted . | . . . . . . . . . . Combat Hostiles . | . . . . . . . . . . Parts Melted . | . . . . . . . . . . Heat Transferred 400 | . . . . . . . . . 400 Parts Sabotaged . | . . . . . . . . . . Parts Stolen . | . . . . . . . . . . Parts Stripped . | . . . . . . . . . . Power Chain Reactions . | . . . . . . . . . . Alert | -11 -10 -10 -9 -9 -9 -8 -8 -8 -8 ------- Run | Yrd Mat Min Mat Min Exi Min Mat Gar Mat Maximum Alert Level 3 | . . . 1 . . 1 2 3 2 Low Security (%) 60 | 100 100 100 98 100 . 84 3 . . Level 1 16 | . . . 1 . . 15 61 . 25 Level 2 18 | . . . . . . . 34 52 74 Level 3 3 | . . . . . . . . 47 . Level 4 . | . . . . . . . . . . Level 5 . | . . . . . . . . . . High Security . | . . . . . . . . . . Max Security . | . . . . . . . . . . Peak Influence 952 | 10 55 75 204 70 . 221 629 952 634 Initial 464 | . . 5 . 70 . . 46 406 464 Average 200 | 1 14 11 67 7 . 104 365 627 481 Influence Increases 3686 | 15 80 190 449 53 . 241 1228 546 884 Destroy 0b10 Robot/C 2000 | . 40 160 300 . . 140 600 240 520 Destroy 0b10 Robot/NC 135 | 15 . . 25 5 . 5 60 5 20 Destroy Leader 418 | . 10 30 76 . . 20 162 20 100 Allied During Kill 16 | . . . 11 . . . . . 5 Successful Hack 78 | . . . 7 . . . 50 14 7 Disable Machine 300 | . . . . . . 15 165 . 120 Anti-Garrison Action 100 | . . . . . . . . 100 . Destroy Structure 369 | . . . . 18 . 61 161 62 67 Lose Combat Pursuer 270 | . 30 . 30 30 . . 30 105 45 Influence Decreases 3104 | 15 65 205 269 233 . 120 723 220 1254 Entered New Map 903 | . . 10 . 110 . . 75 220 488 Time Decay 1801 | 15 55 195 249 123 . 110 638 . 416 Lost Part 210 | . 10 . . . . 10 10 . 180 Lost Ally 40 | . . . 20 . . . . . 20 Purge Threat 150 | . . . . . . . . . 150 Squads Dispatched 13 | . 1 1 2 . . . 4 . 5 Investigation 3 | . . 1 . . . . . . 2 Extermination . | . . . . . . . . . . Reinforcement 7 | . 1 . 2 . . . 3 . 1 Assault 2 | . . . . . . . 1 . 1 Garrison 1 | . . . . . . . . . 1 Intercept . | . . . . . . . . . . Searches Triggered . | . . . . . . . . . . Construction Impeded 1 | . . . . . . . 1 . . Haulers Reinforced . | . . . . . . . . . . Active Scanning Responses . | . . . . . . . . . . Cargo Convoy Interrupts . | . . . . . . . . . . Stealth | -11 -10 -10 -9 -9 -9 -8 -8 -8 -8 --------- Run | Yrd Mat Min Mat Min Exi Min Mat Gar Mat Distress Signals 13 | . 2 . 3 . . . 4 . 4 Communications Jammed . | . . . . . . . . . . Distress Signals . | . . . . . . . . . . Times Spotted 175 | . 7 8 31 1 14 10 44 18 42 Peak Tracking Total 9 | . 4 3 5 2 9 4 6 4 7 Tactical Retreats 18 | . 2 . 1 1 3 . 2 6 3 Traps | -11 -10 -10 -9 -9 -9 -8 -8 -8 -8 ------- Run | Yrd Mat Min Mat Min Exi Min Mat Gar Mat Traps Triggered 7 | . 3 . 2 . . . . . 2 Indirectly . | . . . . . . . . . . Trap Hack Attempts 18 | . . . 18 . . . . . . Triggered . | . . . . . . . . . . Disarmed 1 | . . . 1 . . . . . . Reprogrammed 3 | . . . 3 . . . . . . Reused 3 | . . . . . 3 . . . . Traps Extracted 3 | . . . 3 . . . . . . Installed 3 | . . . . . 3 . . . . Triggered . | . . . . . . . . . . Most Traps Carried 4 | . . 4 4 3 3 . . . . Machines | -11 -10 -10 -9 -9 -9 -8 -8 -8 -8 ---------- Run | Yrd Mat Min Mat Min Exi Min Mat Gar Mat Machines Disabled 34 | . . . . . 12 1 11 2 8 Max in Single Turn 6 | . . . . . 2 1 6 1 3 Garrison Relay 2 | . . . . . . . . 2 . Machines Repaired . | . . . . . . . . . . Machines Dismantled . | . . . . . . . . . . Machines Sabotaged . | . . . . . . . . . . Overloaded Fab Kills . | . . . . . . . . . . Hacking | -11 -10 -10 -9 -9 -9 -8 -8 -8 -8 --------- Run | Yrd Mat Min Mat Min Exi Min Mat Gar Mat Machines Accessed 33 | . . 2 7 . 2 . 15 2 5 Terminals 20 | . . . 4 . . . 10 2 4 Fabricators . | . . . . . . . . . . Repair Stations 4 | . . . 2 . . . 2 . . Recycling Units 1 | . . . 1 . . . . . . Scanalyzers 3 | . . . . . . . 2 . 1 Garrison Access 1 | . . . . . . . 1 . . Total Hacks 94 | . . 2 20 . 2 . 48 6 16 Successful 52 | . . 2 12 . 2 . 27 2 7 Failed 42 | . . . 8 . . . 21 4 9 Catastrophic 6 | . . . 1 . . . 3 . 2 Database Lockouts . | . . . . . . . . . . Manual 29 | . . . 7 . 1 . 14 1 6 Terminals 63 | . . . 8 . . . 36 6 13 Fabricators . | . . . . . . . . . . Repair Stations 12 | . . . 8 . . . 4 . . Recycling Units 4 | . . . 4 . . . . . . Scanalyzers 10 | . . . . . . . 7 . 3 Garrison Access 1 | . . . . . . . 1 . . Terminal Hacks 28 | . . 2 4 . 2 . 14 2 4 Record 1 | . . . . . 1 . . . . Robot Analysis 1 | . . . . . . . 1 . . Prototype ID Bank 2 | . . . . . . . 2 . . Open Door 2 | . . 2 . . . . . . . Branch Access Points 1 | . . . . . . . 1 . . Emergency Access Points 1 | . . . . . . . . 1 . Alert Level 1 | . . . . . . . . . 1 Unreport Threat 1 | . . . . . . . . . 1 Locate Traps 8 | . . . 2 . . . 6 . . Disarm Traps 1 | . . . 1 . . . . . . Maintenance Status 1 | . . . . . . . 1 . . Hauler Manifests 3 | . . . 1 . . . 2 . . Registered Components 1 | . . . . . . . 1 . . Zone Layout 2 | . . . . . . . . . 2 Garrison Registry 1 | . . . . . . . . 1 . Proto ID Catalog 1 | . . . . . 1 . . . . Fabricator Hacks . | . . . . . . . . . . Repair Station Hacks 10 | . . . 6 . . . 4 . . Scan Component 5 | . . . 3 . . . 2 . . Repair 5 | . . . 3 . . . 2 . . Recycling Unit Hacks 1 | . . . 1 . . . . . . Retrieve Components 1 | . . . 1 . . . . . . Scanalyzer 5 | . . . . . . . 3 . 2 Insert Component 3 | . . . . . . . 2 . 1 Analyze 2 | . . . . . . . 1 . 1 Garrison Access Hacks 1 | . . . . . . . 1 . . Unlock Access 1 | . . . . . . . 1 . . Unauthorized Hacks 7 | . . . 1 . . . 5 . 1 Terminals 6 | . . . . . . . 5 . 1 Botnet 6 | . . . . . . . 5 . 1 Fabricators . | . . . . . . . . . . Repair Stations . | . . . . . . . . . . Recycling Units 1 | . . . 1 . . . . . . Mask 1 | . . . 1 . . . . . . Scanalyzers . | . . . . . . . . . . Garrison Access . | . . . . . . . . . . Data Cores Recovered . | . . . . . . . . . . Used . | . . . . . . . . . . Hacking Detections 24 | . . . 5 . . . 13 2 4 Full Trace Events 1 | . . . . . . . 1 . . Feedback Events . | . . . . . . . . . . Feedback Blocked . | . . . . . . . . . . Robot Schematics Acquired . | . . . . . . . . . . Robots Built . | . . . . . . . . . . Authchips . | . . . . . . . . . . Time . | . . . . . . . . . . Total Robot Build Rating . | . . . . . . . . . . Part Schematics Acquired 2 | . . . . . . . 1 . 1 Parts Built . | . . . . . . . . . . Authchips . | . . . . . . . . . . Time . | . . . . . . . . . . Total Part Build Rating . | . . . . . . . . . . Part Studies Acquired . | . . . . . . . . . . Parts Repaired 5 | . . . 3 . . . 2 . . Time 184 | . . . 108 . . . 76 . . Parts Recycled . | . . . . . . . . . . Recycled Matter . | . . . . . . . . . . Retrieved Matter . | . . . . . . . . . . Retrieved Components 10 | . . . 10 . . . . . . Parts Scanalyzed 3 | . . . . . . . 2 . 1 Part Schematics Acquired 2 | . . . . . . . 1 . 1 Parts Damaged 1 | . . . . . . . . . 1 Bothacking | -11 -10 -10 -9 -9 -9 -8 -8 -8 -8 ------------ Run | Yrd Mat Min Mat Min Exi Min Mat Gar Mat Used RIF Installer 1 | . . . . . . . . 1 . Robots Hacked 2 | . . . . . 2 . . . . Non-combat 2 | . . . . . 2 . . . . Combat . | . . . . . . . . . . Robot Hacks Applied 2 | . . . . . 2 . . . . parse_system 2 | . . . . . 2 . . . . Relay Couplers Released 9 | . . . . . . . . 9 . Machine Destruction 9 | . . . . . . . . 9 . Fabnet Peak Effective % . | . . . . . . . . . . Robots Rewired . | . . . . . . . . . . Allies Hacked . | . . . . . . . . . . Hacks Repelled . | . . . . . . . . . . Allies | -11 -10 -10 -9 -9 -9 -8 -8 -8 -8 -------- Run | Yrd Mat Min Mat Min Exi Min Mat Gar Mat Total Allies 3 | . . 2 . 1 . . . . . Largest Group 2 | . . 2 2 1 . . . . . Highest-Rated Group 41 | . . 41 41 31 . . . . . Highest-Rated Ally 31 | . . 31 31 31 . . . . . Total Orders . | . . . . . . . . . . Ally Attacks 19 | . . . 11 . . . . . 8 Total Damage 599 | . . . 147 . . . . . 452 Kills 5 | . . . 3 . . . . . 2 Allies Corrupted . | . . . . . . . . . . Allies Melted . | . . . . . . . . . . Turrets Deployed 1 | . . . . . . . . . 1 Intel | -11 -10 -10 -9 -9 -9 -8 -8 -8 -8 ------- Run | Yrd Mat Min Mat Min Exi Min Mat Gar Mat Active Infowar (turns) 5448 | 13 229 249 1420 1207 1245 359 726 . . Seismic 5448 | 13 229 249 1420 1207 1245 359 726 . . Robot Analysis Total 1 | . . . . . . . 1 . . Derelict Logs Recovered 3 | . . 2 . 1 . . . . . Drone Launches . | . . . . . . . . . . Drone Recoveries . | . . . . . . . . . . Exploration | -11 -10 -10 -9 -9 -9 -8 -8 -8 -8 ------------- Run | Yrd Mat Min Mat Min Exi Min Mat Gar Mat Turns Passed 13732 | 83 229 1396 3169 1207 3191 359 2275 814 1009 Spaces Moved 7150 | 55 212 732 1204 740 1674 274 1391 490 378 Core 3 | 2 . . 1 . . . . . . Treads 3596 | . . 543 1203 740 1110 . . . . Legs 3097 | . . . . . 564 274 1391 490 378 Wheels 454 | 53 212 189 . . . . . . . Hover . | . . . . . . . . . . Flight . | . . . . . . . . . . Fastest Speed 50 | 50 80 95 157 157 120 120 125 120 120 Average Speed 158 | 78 90 141 233 157 160 120 130 124 176 Slowest Speed 750 | 80 95 157 750 157 240 120 135 125 400 Overloaded Moves . | . . . . . . . . . . Propulsion Burnouts . | . . . . . . . . . . Robots Hopped . | . . . . . . . . . . Potential Cave-ins . | . . . . . . . . . . Cave-ins Triggered . | . . . . . . . . . . Exploration Rate (%) 65 | 4 34 99 81 85 92 66 90 58 48 Regions Visited 9 Branch Regions 4 Pre-discovered Areas 1 | . . . . . 1 . . . . Known Exits Taken 1 | . . . . . . . 1 . . Unknown Exits Taken 7 | 1 1 1 1 1 1 1 . . . Scrap Searched 5 | . . 3 . 1 . 1 . . . Spaces Dug 27 | . . . . . . . 2 22 3 Terrain Destroyed 478 | . . . . 26 44 91 201 37 79 Melee 26 | . . . . . . . 1 22 3 Projectile 13 | . . . . . 8 . 2 2 1 AOE 438 | . . . . 26 35 91 198 13 75 Terrain Rammed . | . . . . . . . . . . Walls Destroyed . | . . . . . . . . . . Machines Disabled . | . . . . . . . . . . Actions | -11 -10 -10 -9 -9 -9 -8 -8 -8 -8 --------- Run | Yrd Mat Min Mat Min Exi Min Mat Gar Mat Total 8854 | 75 231 1062 1478 781 2037 292 1756 584 558 Wait 825 | 1 3 273 141 35 125 4 203 16 24 Move 7141 | 54 211 731 1203 739 1673 273 1391 488 378 Hop . | . . . . . . . . . . Pick Up 112 | 4 6 13 15 . 49 . 22 2 1 Fast Attach 36 | 7 1 . 7 . 7 . 2 2 10 Attach 16 | . . . 2 . 6 . 3 . 5 Detach 3 | . . . . . 1 . . . 2 Swap 101 | 1 1 7 20 2 22 . 31 9 8 Drop 99 | . . 14 20 . 35 . 25 2 3 Fire 360 | 8 9 23 46 2 98 11 68 23 72 Melee 100 | . . . 1 . 6 . 1 42 50 Ram . | . . . . . . . . . . Kick 19 | . . . . . . 4 10 . 5 Crush 21 | . . 1 5 3 12 . . . . Escape Stasis . | . . . . . . . . . . Rewire . | . . . . . . . . . . Trap 21 | . . . 18 . 3 . . . . Miscellaneous . | . . . . . . . . . . Route ------- -11/Scrapyard -10/Materials -10/Mines (discovered 3 exits: *Mat x2 / [*Sub]) -9/Materials (discovered 5 exits: *Mat x3 / [*Min] / [*Sto]) -9/Mines (discovered 3 exits: *Mat x2 / *Exi) -9/Exiles -8/Mines -8/Materials (discovered 4 exits: [*Fac x3] / Gar) -8/Garrison (discovered 3 exits: *Mat x3) -8/Materials (discovered 1 exit: [Fac]) History --------- Turn | Location | Event 21 | -11/Scrapyard | Discovered new exit (range 15) 84 | -11/Scrapyard | Entered Materials 123 | -10/Materials | Discovered new exit (range 11) 300 | -10/Materials | Build established: Mutant 313 | -10/Materials | Entered Mines 357 | -10/Mines | Discovered new exit (range 14) 506 | -10/Mines | Met a Derelict shopkeep closing up shop 675 | -10/Mines | Learned Materials non-interactive machine intel 727 | -10/Mines | Found a hidden stash of uninstalled traps 848 | -10/Mines | Learned 2 Materials zone layouts 876 | -10/Mines | Discovered new exit (range 4) 933 | -10/Mines | Discovered new exit (range 5) 965 | -10/Mines | Met a Derelict who couldn't figure out how to use a Trap Extractor 1194 | -10/Mines | Core integrity fell below 50% 1709 | -10/Mines | Entered Materials 1709 | -9/Materials | Accompanied by 2 allies 1709 | -9/Materials | Evolved 2 slots: Utility x2 1711 | -9/Materials | Loaded intel: 31 non-interactive machine locations 1714 | -9/Materials | Led the pair of lost Derelicts to an unsafe place 1791 | -9/Materials | Repaired Arm. Treads 2656 | -9/Materials | Discovered new exit (range 11) 2746 | -9/Materials | Discovered new exit (range 16) 2830 | -9/Materials | Repaired Adv. Treads 3079 | -9/Materials | Discovered new exit (range 6) 3565 | -9/Materials | Discovered new exit (range 7) 4208 | -9/Materials | Discovered new exit (range 15) 4803 | -9/Materials | Repaired Med. Armor Plating 4878 | -9/Materials | Entered Mines 5363 | -9/Mines | Received a Mining Laser from a helpful Derelict 5500 | -9/Mines | Deemed a non-threat by the Exiles lab entrance 5514 | -9/Mines | Discovered new exit (range 4) 5805 | -9/Mines | Discovered new exit (range 3) 6079 | -9/Mines | Discovered new exit (range 5) 6085 | -9/Mines | Entered Exiles 6123 | -9/Exiles | Met 8R-AWN 6150 | -9/Exiles | Met EX-HEX 6192 | -9/Exiles | Met EX-BIN 6211 | -9/Exiles | Aligned with FarCom system 6213 | -9/Exiles | Given EX-Vault access code 6249 | -9/Exiles | Opened EX-Vault 6274 | -9/Exiles | Found Superbattery 6307 | -9/Exiles | Warned to stay clear of 0b10 Research branches 6420 | -9/Exiles | Met EX-DEC 6464 | -9/Exiles | Learned location of Zion (-7) 6969 | -9/Exiles | Found YOLO Cannon 6980 | -9/Exiles | Found 0b10 Alert Chip 7368 | -9/Exiles | Attacked by the Exiles 7590 | -9/Exiles | Destroyed 8R-AWN 7612 | -9/Exiles | Lost 8 parts (3n4u1w) 7638 | -9/Exiles | Found Prototype Device 7638 | -9/Exiles | Identified AS-neutralizer No. 17b 7652 | -9/Exiles | Found Prototype Ballistic Gun 7740 | -9/Exiles | Identified 8R-AWN's Boregun 7989 | -9/Exiles | Destroyed EX-DEC 8002 | -9/Exiles | Destroyed EX-BIN 8023 | -9/Exiles | Destroyed EX-HEX 8279 | -9/Exiles | Found Exp. Core Analyzer 8283 | -9/Exiles | Found Deploy-a-Sentry 8494 | -9/Exiles | Build established: Scavenger-Mutant 8867 | -9/Exiles | Found Prototype Processor 8881 | -9/Exiles | Identified Exp. Targeting Computer 9266 | -9/Exiles | Discovered new exit (range 10) 9276 | -9/Exiles | Stole three prototypes: Superbattery, 0b10 Alert Chip, Deploy-a-Sentry 9276 | -9/Exiles | Entered Mines 9410 | -8/Mines | Core integrity fell below 50% 9462 | -8/Mines | Destroyed 7 combat bots 9626 | -8/Mines | Discovered new exit (range 8) 9635 | -8/Mines | Entered Materials 9635 | -8/Materials | Evolved 2 slots: Propulsion x2 9767 | -8/Materials | Repaired Mni. Grenade Launcher 10197 | -8/Materials | Discovered new exit (range 8) 10804 | -8/Materials | Discovered new exit (range 13) 10932 | -8/Materials | Discovered new exit (range 16) 11310 | -8/Materials | Repaired Mak. Leg 11635 | -8/Materials | First assault squad dispatched 11910 | -8/Materials | Identified exit to Garrison 11910 | -8/Materials | Entered Garrison 11960 | -8/Garrison | Triggered checkpoint 12248 | -8/Garrison | Triggered checkpoint 12445 | -8/Garrison | Discovered new exit (range 51) 12445 | -8/Garrison | Discovered new exit (range 77) 12445 | -8/Garrison | Discovered new exit (range 32) 12618 | -8/Garrison | Garrison Relay disabled 12641 | -8/Garrison | Installed Relay Interface Framework 12653 | -8/Garrison | Garrison Relay disabled 12704 | -8/Garrison | Triggered checkpoint 12724 | -8/Garrison | Entered Materials 12814 | -8/Materials | Core integrity fell below 50% 12992 | -8/Materials | Discovered new exit (range 20) 13074 | -8/Materials | Lost 3 parts (3n) 13282 | -8/Materials | Core integrity fell below 20% 13524 | -8/Materials | First assault squad dispatched 13549 | -8/Materials | DAS Turret deployed 13712 | -8/Materials | Garrison activated, responded to threat 13733 | -8/Materials | Destroyed by Y-45 Defender with Heavy Assault Rifle Last Messages --------------- 13678_ Detecting nearby Garrison Access. 13682_ ALERT: Hostiles spotted, dispatching reinforcements to Terminal M005. 13683_ W-25 Informer sends out distress signal. 13695_ Lgt. Angular Momentum Engine destroyed. 13705_ Minigun destroyed. 13707_ >RZIWUYHGCRHL=ONDKG5PLMRLA> Map ----- +----------------------------------------------------+ | # = [ # ### ######## !! #?# ############ | | ###%### #?# ## | ! # ! #?# | | ##?#=#?# ### ## # #?# | | ####=#########% # #! = !#?# | | # % % + "" # #?# #### ##### | | # !######### %%# """########?#######??# # | | ! =#??#######%## *S"#?????????????????# # | | #??# #%## #?????????????????# + | | ##??# #%########?????????????????# # | | "#??# [ #%#????????????????????????# # | | T#??# # #####################????# #? | | "#??# + % + #????# #? | | ##??# # ###### #????# #??## | | "" #???# # ####?# #????# #???? | | "" #???####### !### #????# #???? | | "" #?????????# !## + ?# #???? | | #?????????# !## # ## #???? | | #?????????# !## #? ## #???? | | #?????????# !## #???## #???? | | #####??############ !### #????# #???? | | ???????# #????# ###############????# #???? | | ####???# #????# ## ####### ?# #???? | | #???# ###### m## ? ???? | | #???# + %% T ? ???? | | #???# """ ###+####### ???? | | #???# """ # ???# @ #######???? ######??? | | ######???????????????###Y###??????????#????????? | | # #?????????????????? ????????????????????? | | + #???????????????????"""???????????????????? | | # #???????????????????""" ??????????????????? | | #!![ #????????????????????"" #?????????????????? | | #!![ #???????????????????? #?????????????????? | | #!![ #????????????????????? ?#?????????????????? | | # #?????????????????????????????????????????? | | # #?????????????????????????????????????????? | | ### #?????????????????????????????????????????? | | ??######?????????????????????????????????????????? | | ?????????????????????????????????????????????????? | | ?????????????????????????????????????????????????? | | ?????????????????????????????????????????????????? | | ?????????????????????????????????????????????????? | | ?????????????????????????????????????????????????? | | ?????????????????????????????????????????????????? | | ?????????????????????????????????????????????????? | | ?????????????????????????????????????????????????? | | ?????????????????????????????????????????????????? | | ?????????????????????????????????????????????????? | | ?????????????????????????????????????????????????? | | | | | +----------------------------------------------------+ Best States ------------- Heat Dissipation 54 Energy Generation 19 Energy Capacity 310 Matter Stores 300 Matter Capacity 400 Sight Range 16 Terrain Scan Density 10 Additional Mass Support 12 Armor Coverage 375 Resistance: TH 10 Evasion (%) 55 Targeting Accuracy 6 Melee Accuracy 5 Target Analysis 5 Core Analysis 6 Recoil Reduction 2 Trap Extractor Capacity 6 Item Schematics ----------------- Cmb. Antigrav System | -8/Materials | Scanalyzed Cold Fusion Reactor | -8/Materials | Scanalyzed Robot Schematics ------------------ None Fabricated ------------ Nothing Repaired ---------- Arm. Treads | 73% | -9/Materials Adv. Treads | 65% | -9/Materials Med. Armor Plating | 28% | -9/Materials Mni. Grenade Launcher | 6% | -8/Materials Mak. Leg | 3% | -8/Materials Studied --------- None Alien Tech Used ----------------- None Achievements -------------- None Challenges ------------ None Game ------ Seed ChipAccelerationHarness Manual? 0 Play Time 01:33:54 Cumulative 508.9 hours Start 2026.09.16 @ 21:10:21 End 2026.09.16 @ 22:54:23 Sessions 1 Manual Loads 0 Difficulty Rogue Special Mode None Game No. 375 Rogue 375 Adventurer 0 Explorer 0 Win Type - Total 11 Types 4/0/5/2/0/0/0/0/0/0 Lore% 65 Gallery% 74 Achievement% 62 Wizard Run 0 Options --------- Layout 2 ASCII 0 Keyboard 1 Movement Vi Keybinds 0 Fullscreen 2 Font 32/Smallcaps Map View 77x44 Zoom Use 0% Tactical HUD 1 Map Filters NONE Filters NONE Steam 1 RUN: f59216dd-3daa-41e3-acb2-ca013d4a47e7